fUST/lending_fUST_20250305
["ID","MTS","AMOUNT","RATE_DAILY","PERIOD"]
[355410284,1741114239165,-500.0,0.00043835,120]
[355410285,1741114239176,-500.0,0.00043835,120]
[355410286,1741114239186,-500.0,0.00043835,120]
[355410287,1741114239196,-500.0,0.00043835,120]
[355410288,1741114239206,-1000.0,0.00043835,20]
[355410289,1741114239215,-500.0,0.00043835,120]
[355410290,1741114239225,-500.0,0.00043835,120]
[355410291,1741114239234,-500.0,0.00043835,120]
[355410292,1741114239244,-500.0,0.00043835,120]
[355410293,1741114239254,-500.0,0.00043835,120]
[355410294,1741114239263,-500.0,0.00043835,120]
[355410295,1741114239273,-500.0,0.00043835,120]
[355410296,1741114239283,-524.73661576,0.00043835,120]
[355410297,1741114239292,-791.38,0.00043835,120]
[355410298,1741114239303,-500.0,0.00043835,120]
[355410299,1741114239313,-500.0,0.00043835,120]
[355410300,1741114239324,-500.0,0.00043835,120]
[355410301,1741114239333,-585.55519244,0.00043835,120]
[355410302,1741114239343,-994.75,0.00043835,120]
[355410303,1741114239353,-500.0,0.00043835,120]
[355410304,1741114239362,-500.0,0.00043835,120]
[355410305,1741114239372,-831.59,0.00043835,120]
[355410306,1741114239382,-500.0,0.00043835,120]
[355410307,1741114239392,-500.0,0.00043835,120]
[355410308,1741114239402,-500.0,0.00043835,120]
[355410310,1741114239411,-500.0,0.00043835,120]
[355410311,1741114239420,-2049.88,0.00043835,120]
[355410312,1741114239429,-500.0,0.00043835,120]
[355410313,1741114239439,-500.0,0.00043835,120]
[355410314,1741114239448,-500.0,0.00043835,120]
[355410315,1741114239458,-500.0,0.00043835,120]
[355410317,1741114239467,-500.0,0.00043835,120]
[355410318,1741114239476,-500.0,0.00043835,120]
[355410319,1741114239485,-565.76,0.00043835,120]
[355410320,1741114239495,-500.0,0.00043835,120]
[355410321,1741114239504,-1048.35,0.00043835,120]
[355410322,1741114239514,-1521.52,0.00043835,120]
[355410323,1741114239523,-500.0,0.00043835,120]
[355410324,1741114239533,-500.0,0.00043835,120]
[355410325,1741114239542,-500.0,0.00043835,120]
[355410327,1741114239552,-1279.66,0.00043835,120]
[355410328,1741114239561,-23135.26,0.00043835,7]
[355410329,1741114239572,-660.53,0.00043835,120]
[355410330,1741114239581,-660.7,0.00043835,120]
[355410331,1741114239590,-500.0,0.00043835,120]
[355410332,1741114239600,-500.0,0.00043835,120]
[355410333,1741114239609,-500.0,0.00043835,120]
[355410334,1741114239618,-500.0,0.00043835,120]
[355410335,1741114239627,-500.0,0.00043835,120]
[355410336,1741114239637,-500.0,0.00043835,120]
[355410337,1741114239646,-541.66,0.00043835,120]
[355410338,1741114239656,-500.0,0.00043835,120]
[355410339,1741114239666,-500.0,0.00043835,14]
[355410340,1741114239676,-500.0,0.00043835,120]
[355410341,1741114239686,-998.42,0.00043835,30]
[355410342,1741114239695,-500.0,0.00043835,120]
[355410343,1741114239706,-522.97449634,0.00043835,120]
[355410344,1741114239716,-500.0,0.00043835,120]
[355410345,1741114239726,-1943.05,0.00043835,120]
[355410346,1741114239736,-500.0,0.00043873,10]
[355410348,1741114239746,-999.0,0.00043889,120]
[355410350,1741114239756,-3000.0,0.00044283,2]
[355410351,1741114239765,-1576.73613248,0.00044373,3]
[355410352,1741114239775,-291.535117,0.00044383,120]
[355410353,1741114239784,-151.0,0.00044383,120]
[355410354,1741114239794,-197.933204,0.00044383,120]
[355410355,1741114239803,-197.933204,0.00044383,120]
[355410356,1741114239812,-2499.99,0.00044383,120]
[355410357,1741114239823,-500.0,0.00044383,120]
[355410358,1741114239832,-500.0,0.00044383,120]
[355410359,1741114239841,-500.0,0.00044383,120]
[355410360,1741114239852,-500.0,0.00044383,120]
[355410361,1741114239861,-500.0,0.00044383,120]
[355410362,1741114239871,-500.0,0.00044383,120]
[355410363,1741114239880,-500.0,0.00044383,120]
[355410364,1741114239890,-1787.9,0.00044383,120]
[355410365,1741114239899,-500.0,0.00044383,120]
[355410366,1741114239909,-500.0,0.00044383,120]
[355410367,1741114239919,-500.0,0.00044383,120]
[355410368,1741114239930,-711.54,0.00044383,120]
[355410369,1741114239940,-1324.99,0.00044383,6]
[355410370,1741114239950,-500.0,0.00044383,120]
[355410371,1741114239959,-500.0,0.00044383,120]
[355410372,1741114239970,-791.38,0.00044383,120]
[355410373,1741114239980,-500.0,0.00044383,120]
[355410374,1741114239989,-994.75,0.00044383,120]
[355410375,1741114240000,-831.59,0.00044383,120]
[355410376,1741114240011,-500.0,0.00044383,120]
[355410377,1741114240021,-2049.88,0.00044383,120]
[355410378,1741114240030,-500.0,0.00044383,120]
[355410379,1741114240040,-500.0,0.00044383,120]
[355410380,1741114240049,-500.0,0.00044383,120]
[355410381,1741114240059,-1048.35,0.00044383,120]
[355410382,1741114240071,-1521.52,0.00044383,120]
[355410383,1741114240080,-500.0,0.00044383,120]
[355410384,1741114240090,-1279.66,0.00044383,120]
[355410385,1741114240099,-23135.26,0.00044383,7]
[355410386,1741114240109,-660.53,0.00044383,120]
[355410387,1741114240118,-660.7,0.00044383,120]
[355410388,1741114240128,-500.0,0.00044383,120]
[355410389,1741114240137,-500.0,0.00044383,120]
[355410390,1741114240147,-500.0,0.00044383,120]
[355410391,1741114240156,-500.0,0.00044383,120]
[355410392,1741114240166,-998.42,0.00044383,30]
[355410393,1741114240175,-500.0,0.00044383,120]
[355410394,1741114240186,-500.0,0.00044383,120]
[355410395,1741114240196,-1943.05,0.00044383,120]
[355410396,1741114240205,-155.25,0.000444,36]
[355410397,1741114240215,-155.25,0.000444,36]
[355410398,1741114240224,-155.25,0.000444,36]
[355410399,1741114240234,-155.25,0.000444,36]
[355410400,1741114240244,-999.0,0.00044437,120]
[355410401,1741114240254,-300.0,0.000447,24]
[355410402,1741114240263,-150.0,0.00044855,30]
[355410403,1741114240273,-1576.73613248,0.00044921,3]
[355410404,1741114240283,-2499.99,0.00044931,120]
[355410405,1741114240292,-495.43660646,0.00044931,120]
[355410406,1741114240302,-284.22,0.00044931,120]
[355410407,1741114240311,-500.0,0.00044931,120]
[355410408,1741114240322,-342.41841688,0.00044931,120]
[355410409,1741114240332,-500.0,0.00044931,120]
[355410410,1741114240342,-500.0,0.00044931,120]
[355410412,1741114240351,-1787.9,0.00044931,120]
[355410413,1741114240360,-500.0,0.00044931,120]
[355410414,1741114240370,-500.0,0.00044931,120]
[355410415,1741114240379,-500.0,0.00044931,120]
[355410416,1741114240389,-711.54,0.00044931,120]
[355410417,1741114240398,-1324.99,0.00044931,6]
[355410418,1741114240408,-500.0,0.00044931,120]
[355410419,1741114240419,-426.65111604,0.00044931,120]
[355410420,1741114240428,-791.38,0.00044931,120]
[355410421,1741114240438,-500.0,0.00044931,120]
[355410422,1741114240448,-994.75,0.00044931,120]
[355410423,1741114240458,-831.59,0.00044931,120]
[355410424,1741114240468,-500.0,0.00044931,120]
[355410425,1741114240478,-2049.88,0.00044931,120]
[355410426,1741114240487,-500.0,0.00044931,120]
[355410427,1741114240498,-500.0,0.00044931,120]
[355410428,1741114240507,-500.0,0.00044931,120]
[355410429,1741114240516,-1048.35,0.00044931,120]
[355410430,1741114240526,-1521.52,0.00044931,120]
[355410431,1741114240535,-1279.66,0.00044931,120]
[355410432,1741114240545,-23135.26,0.00044931,7]
[355410433,1741114240555,-660.53,0.00044931,120]
[355410434,1741114240565,-660.7,0.00044931,120]
[355410435,1741114240580,-500.0,0.00044931,120]
[355410436,1741114240590,-500.0,0.00044931,120]
[355410437,1741114240600,-500.0,0.00044931,120]
[355410438,1741114240610,-500.0,0.00044931,120]
[355410439,1741114240620,-998.42,0.00044931,30]
[355410440,1741114240630,-500.0,0.00044931,120]
[355410441,1741114240640,-500.0,0.00044931,120]
[355410442,1741114240650,-1943.05,0.00044931,120]
[355410443,1741114240659,-999.0,0.00044985,120]
[355410444,1741114240669,-1714.47628966,0.00044992,2]
[355410445,1741114240679,-159.0,0.00045,90]
[355410446,1741114240689,-675.83207941,0.00045244,2]
[355410447,1741114240699,-734.6,0.000453,2]
[355410448,1741114240709,-3153.47226496,0.00045469,3]
[355410449,1741114240719,-151.0,0.00045479,120]
[355410450,1741114240728,-197.933204,0.00045479,120]
[355410451,1741114240738,-197.933204,0.00045479,120]
[355410452,1741114240747,-2499.99,0.00045479,120]
[355410453,1741114240756,-500.0,0.00045479,120]
[355410454,1741114240766,-500.0,0.00045479,120]
[355410455,1741114240775,-500.0,0.00045479,120]
[355410456,1741114240785,-1787.9,0.00045479,120]
[355410457,1741114240794,-500.0,0.00045479,120]
[355410458,1741114240803,-500.0,0.00045479,120]
[355410459,1741114240813,-500.0,0.00045479,120]
[355410460,1741114240827,-711.54,0.00045479,120]
[355410461,1741114240837,-1324.99,0.00045479,6]
[355410462,1741114240846,-500.0,0.00045479,120]
[355410463,1741114240856,-791.38,0.00045479,120]
[355410464,1741114240866,-500.0,0.00045479,120]
[355410465,1741114240875,-994.75,0.00045479,120]
[355410466,1741114240885,-831.59,0.00045479,120]
[355410467,1741114240895,-500.0,0.00045479,120]
[355410468,1741114240904,-2049.88,0.00045479,120]
[355410469,1741114240913,-500.0,0.00045479,120]
[355410470,1741114240929,-500.0,0.00045479,120]
[355410471,1741114240939,-500.0,0.00045479,120]
[355410472,1741114240948,-1048.35,0.00045479,120]
[355410473,1741114240958,-1521.52,0.00045479,120]
[355410474,1741114240969,-1279.66,0.00045479,120]
[355410475,1741114240978,-23135.26,0.00045479,7]
[355410476,1741114240988,-660.53,0.00045479,120]
[355410477,1741114240998,-660.7,0.00045479,120]
[355410478,1741114241008,-500.0,0.00045479,120]
[355410479,1741114241018,-500.0,0.00045479,120]
[355410480,1741114241028,-500.0,0.00045479,120]
[355410481,1741114241038,-500.0,0.00045479,120]
[355410482,1741114241047,-998.42,0.00045479,30]
[355410483,1741114241058,-500.0,0.00045479,120]
[355410484,1741114241067,-500.0,0.00045479,120]
[355410485,1741114241081,-1943.05,0.00045479,120]
[355410486,1741114241091,-999.0,0.00045533,120]
[355410487,1741114241101,-150.0,0.00045555,2]
[355410488,1741114241111,-1954.0,0.00045555,2]
[355410489,1741114241121,-539.0,0.00045555,2]
[355410490,1741114241131,-2276.0,0.00045555,2]
[355410491,1741114241141,-397.0,0.00045555,2]
[355410492,1741114241151,-4293.48,0.000456,30]
[355410493,1741114241160,-428.48,0.000456,30]
[355410494,1741114241170,-252.27,0.000456,30]
[355410495,1741114241179,-159.0,0.00045685,90]
[355410496,1741114241189,-1576.73613248,0.00046017,4]
[355410497,1741114241199,-2499.99,0.00046027,120]
[355410498,1741114241209,-500.0,0.00046027,120]
[355410499,1741114241218,-500.0,0.00046027,120]
[355410500,1741114241228,-500.0,0.00046027,120]
[355410501,1741114241238,-1787.9,0.00046027,120]
[355410502,1741114241247,-500.0,0.00046027,120]
[355410503,1741114241257,-500.0,0.00046027,120]
[355410504,1741114241266,-500.0,0.00046027,120]
[355410505,1741114241276,-711.54,0.00046027,120]
[355410506,1741114241285,-1324.99,0.00046027,6]
[355410507,1741114241294,-500.0,0.00046027,120]
[355410508,1741114241303,-791.38,0.00046027,120]
[355410509,1741114241313,-500.0,0.00046027,120]
[355410510,1741114241325,-994.75,0.00046027,120]
[355410511,1741114241335,-831.59,0.00046027,120]
[355410512,1741114241344,-222.8,0.00046027,120]
[355410513,1741114241354,-2049.88,0.00046027,120]
[355410514,1741114241363,-500.0,0.00046027,120]
[355410515,1741114241373,-500.0,0.00046027,120]
[355410516,1741114241383,-500.0,0.00046027,120]
[355410517,1741114241392,-1048.35,0.00046027,120]
[355410518,1741114241402,-1521.52,0.00046027,120]
[355410519,1741114241411,-1279.66,0.00046027,120]
[355410520,1741114241421,-23135.26,0.00046027,7]
[355410521,1741114241430,-660.53,0.00046027,120]
[355410522,1741114241439,-660.7,0.00046027,120]
[355410523,1741114241448,-168.09051653,0.00046027,120]
[355410524,1741114241458,-500.0,0.00046027,120]
[355410525,1741114241468,-500.0,0.00046027,120]
[355410526,1741114241477,-500.0,0.00046027,120]
[355410527,1741114241487,-998.42,0.00046027,30]
[355410528,1741114241496,-500.0,0.00046027,120]
[355410529,1741114241505,-349.15709935,0.00046027,120]
[355410530,1741114241515,-1943.05,0.00046027,120]
[355410531,1741114241524,-190.21,0.00046081,120]
[355410532,1741114241534,-450.1021302,0.0004618,4]
[355410533,1741114241658,-300.0,0.000462,24]
[355410534,1741114241668,-150.0,0.00046225,30]
[355410535,1741114241678,-500.0,0.00046532,2]
[355410536,1741114241687,-1576.73613248,0.00046565,4]
[355410537,1741114241696,-151.0,0.00046575,120]
[355410538,1741114241705,-197.933204,0.00046575,120]
[355410539,1741114241715,-197.933204,0.00046575,120]
[355410540,1741114241724,-2499.99,0.00046575,120]
[355410541,1741114241733,-500.0,0.00046575,120]
[355410542,1741114241743,-281.69,0.00046575,120]
[355410543,1741114241752,-1787.9,0.00046575,120]
[355410544,1741114241761,-500.0,0.00046575,120]
[355410545,1741114241771,-500.0,0.00046575,120]
[355410546,1741114241780,-500.0,0.00046575,120]
[355410547,1741114241790,-711.54,0.00046575,120]
[355410548,1741114241799,-1324.99,0.00046575,6]
[355410549,1741114241809,-187.61,0.00046575,120]
[355410550,1741114241818,-791.38,0.00046575,120]
[355410551,1741114241829,-500.0,0.00046575,120]
[355410552,1741114241839,-994.75,0.00046575,120]
[355410553,1741114241848,-831.59,0.00046575,120]
[355410554,1741114241858,-2049.88,0.00046575,120]
[355410555,1741114241868,-500.0,0.00046575,120]
[355410556,1741114241877,-500.0,0.00046575,120]
[355410557,1741114241887,-500.0,0.00046575,120]
[355410558,1741114241898,-1048.35,0.00046575,120]
[355410559,1741114241908,-1521.52,0.00046575,120]
[355410560,1741114241919,-1279.66,0.00046575,120]
[355410561,1741114241930,-23135.26,0.00046575,7]
[355410562,1741114241944,-660.53,0.00046575,120]
[355410563,1741114241954,-660.7,0.00046575,120]
[355410564,1741114241964,-500.0,0.00046575,120]
[355410565,1741114241975,-500.0,0.00046575,120]
[355410566,1741114241984,-164.07421597,0.00046575,120]
[355410567,1741114241994,-998.42,0.00046575,30]
[355410568,1741114242004,-612.97206465,0.00046575,120]
[355410569,1741114242014,-1943.05,0.00046575,120]
[355410570,1741114242025,-22780.69068597,0.00046629,30]
[355410571,1741114242036,-151.0,0.000468,120]
[355410572,1741114242046,-197.933204,0.000468,120]
[355410573,1741114242055,-197.933204,0.000468,120]
[355410574,1741114242065,-1000.0,0.000469,52]
[355410575,1741114242076,-163.67169276,0.00046999,17]
[355410576,1741114242086,-500.0,0.00046999,17]
[355410577,1741114242096,-2000.0,0.00047,120]
[355410578,1741114242106,-5500.0,0.00047,120]
[355410579,1741114242116,-151.0,0.00047058,120]
[355410580,1741114242125,-151.0,0.00047058,120]
[355410581,1741114242135,-218.928663,0.00047058,120]
[355410582,1741114242145,-197.933204,0.00047058,120]
[355410583,1741114242155,-197.933204,0.00047058,120]
[355410584,1741114242164,-197.933204,0.00047058,120]
[355410585,1741114242174,-197.933204,0.00047058,120]
[355410586,1741114242184,-197.933204,0.00047058,120]
[355410587,1741114242194,-197.933204,0.00047058,120]
[355410588,1741114242204,-197.933204,0.00047058,120]
[355410589,1741114242214,-197.933204,0.00047058,120]
[355410590,1741114242224,-197.933204,0.00047058,120]
[355410591,1741114242234,-197.933204,0.00047058,120]
[355410592,1741114242243,-500.0,0.00047058,17]
[355410593,1741114242253,-1576.73613248,0.0004709,4]
[355410594,1741114242261,-150.0,0.00047091,2]
[355410595,1741114242271,-273.1190893,0.00047092,30]
[355410596,1741114242281,-800.0,0.00047092,30]
[355410597,1741114242291,-864.0,0.00047092,30]
[355410598,1741114242300,-933.12,0.00047092,30]
[355410599,1741114242309,-1007.7696,0.00047092,30]
[355410600,1741114242319,-1088.391168,0.00047092,30]
[355410601,1741114242330,-1600.0,0.00047092,30]
[355410602,1741114242339,-410.18717067,0.00047092,30]
[355410603,1741114242349,-150.0,0.00047092,2]
[355410604,1741114242359,-150.5,0.00047092,2]
[355410605,1741114242369,-2000.0,0.000471,42]
[355410606,1741114242379,-150.7,0.000471,120]
[355410608,1741114242388,-150.0,0.000471,120]
[355410610,1741114242398,-150.0,0.000471,2]
[355410612,1741114242407,-1576.73613248,0.00047113,4]
[355410613,1741114242418,-675.83207941,0.00047116,2]
[355410614,1741114242428,-161.11966885,0.00047122,2]
[355410615,1741114242438,-5000.0,0.00047123,120]
[355410616,1741114242448,-197.933204,0.00047123,120]
[355410617,1741114242457,-197.933208,0.00047123,120]
[355410618,1741114242466,-2499.99,0.00047123,120]
[355410620,1741114242475,-500.0,0.00047123,120]
[355410622,1741114242485,-1787.9,0.00047123,120]
[355410623,1741114242494,-20000.0,0.00047123,120]
[355410625,1741114242504,-20000.0,0.00047123,120]
[355410626,1741114242514,-20000.0,0.00047123,120]
[355410627,1741114242524,-20000.0,0.00047123,120]
[355410628,1741114242534,-20000.0,0.00047123,120]
[355410629,1741114242543,-20000.0,0.00047123,120]
[355410630,1741114242553,-20000.0,0.00047123,120]
[355410631,1741114242562,-20000.0,0.00047123,120]
[355410632,1741114242573,-20000.0,0.00047123,120]
[355410633,1741114242583,-20000.0,0.00047123,120]
[355410634,1741114242592,-20000.0,0.00047123,120]
[355410636,1741114242601,-11224.06666737,0.00047123,120]
[355410638,1741114242611,-500.0,0.00047123,120]
[355410640,1741114242620,-500.0,0.00047123,120]
[355410641,1741114242630,-500.0,0.00047123,120]
[355410642,1741114242640,-711.54,0.00047123,120]
[355410643,1741114242650,-1324.99,0.00047123,6]
[355410644,1741114242659,-791.38,0.00047123,120]
[355410645,1741114242669,-500.0,0.00047123,120]
[355410646,1741114242678,-994.75,0.00047123,120]
[355410648,1741114242688,-831.59,0.00047123,120]
[355410650,1741114242697,-2049.88,0.00047123,120]
[355410651,1741114242707,-500.0,0.00047123,120]
[355410653,1741114242717,-500.0,0.00047123,120]
[355410654,1741114242726,-500.0,0.00047123,120]
[355410655,1741114242735,-1048.35,0.00047123,120]
[355410656,1741114242745,-1521.52,0.00047123,120]
[355410657,1741114242754,-1279.66,0.00047123,120]
[355410658,1741114242764,-23135.26,0.00047123,7]
[355410659,1741114242773,-660.53,0.00047123,120]
[355410660,1741114242783,-660.7,0.00047123,120]
[355410661,1741114242793,-500.0,0.00047123,120]
[355410662,1741114242802,-500.0,0.00047123,120]
[355410663,1741114242811,-998.42,0.00047123,30]
[355410664,1741114242823,-1943.05,0.00047123,120]
[355410665,1741114242834,-500.0,0.00047216,92]
[355410666,1741114242844,-500.0,0.00047316,99]
[355410667,1741114242854,-500.0,0.00047416,90]
[355410668,1741114242864,-1000.0,0.000475,2]
[355410669,1741114242874,-500.0,0.00047516,91]
[355410670,1741114242884,-500.0,0.00047616,96]
[355410671,1741114242898,-2499.99,0.00047671,120]
[355410672,1741114242908,-267.07446645,0.00047671,120]
[355410673,1741114242918,-1787.9,0.00047671,120]
[355410674,1741114242931,-500.0,0.00047671,120]
[355410675,1741114242941,-500.0,0.00047671,120]
[355410676,1741114242951,-531.98216972,0.00047671,120]
[355410677,1741114242962,-711.54,0.00047671,120]
[355410678,1741114242972,-1324.99,0.00047671,6]
[355410679,1741114242981,-791.38,0.00047671,120]
[355410680,1741114242991,-500.0,0.00047671,120]
[355410681,1741114243001,-994.75,0.00047671,120]
[355410682,1741114243011,-831.59,0.00047671,120]
[355410683,1741114243022,-2049.88,0.00047671,120]
[355410684,1741114243031,-500.0,0.00047671,120]
[355410685,1741114243041,-500.0,0.00047671,120]
[355410686,1741114243051,-500.0,0.00047671,120]
[355410687,1741114243060,-1048.35,0.00047671,120]
[355410688,1741114243070,-1521.52,0.00047671,120]
[355410689,1741114243080,-1279.66,0.00047671,120]
[355410690,1741114243090,-23135.26,0.00047671,7]
[355410691,1741114243100,-660.53,0.00047671,120]
[355410692,1741114243110,-660.7,0.00047671,120]
[355410693,1741114243120,-500.0,0.00047671,120]
[355410694,1741114243130,-500.0,0.00047671,120]
[355410695,1741114243139,-998.42,0.00047671,30]
[355410696,1741114243149,-1943.05,0.00047671,120]
[355410697,1741114243158,-402.3277602,0.00047671,30]
[355410698,1741114243168,-159.0,0.00047682,90]
[355410699,1741114243177,-319.56,0.000477,30]
[355410700,1741114243187,-4293.48,0.000477,30]
[355410701,1741114243197,-428.48,0.000477,30]
[355410702,1741114243207,-252.27,0.000477,30]
[355410703,1741114243217,-300.0,0.000477,25]
[355410704,1741114243226,-500.0,0.00047716,92]
[355410705,1741114243237,-500.0,0.00047816,96]
[355410706,1741114243246,-500.0,0.00047916,98]
[355410707,1741114243256,-2899.999999,0.00048,120]
[355410708,1741114243265,-252.10279119,0.00048,30]
[355410709,1741114243275,-500.0,0.00048016,100]
[355410710,1741114243284,-1136.656613,0.00048089,2]
[355410711,1741114243294,-500.0,0.00048092,120]
[355410713,1741114243304,-500.51960568,0.00048092,2]
[355410715,1741114243313,-860.0,0.000481,45]
[355410717,1741114243323,-150.0,0.000481,2]
[355410719,1741114243332,-500.0,0.00048116,95]
[355410720,1741114243342,-238.91548,0.000482,120]
[355410721,1741114243351,-500.0,0.00048216,97]
[355410722,1741114243360,-777.85953006,0.00048219,40]
[355410723,1741114243369,-4480.05981816,0.00048219,40]
[355410724,1741114243379,-2499.99,0.00048219,120]
[355410725,1741114243388,-1787.9,0.00048219,120]
[355410726,1741114243398,-500.0,0.00048219,120]
[355410727,1741114243407,-500.0,0.00048219,120]
[355410728,1741114243416,-711.54,0.00048219,120]
[355410729,1741114243426,-1324.99,0.00048219,6]
[355410730,1741114243436,-791.38,0.00048219,120]
[355410731,1741114243445,-500.0,0.00048219,120]
[355410732,1741114243455,-994.75,0.00048219,120]
[355410733,1741114243464,-831.59,0.00048219,120]
[355410734,1741114243474,-2049.88,0.00048219,120]
[355410735,1741114243484,-500.0,0.00048219,120]
[355410736,1741114243494,-500.0,0.00048219,120]
[355410737,1741114243503,-500.0,0.00048219,120]
[355410738,1741114243512,-1048.35,0.00048219,120]
[355410739,1741114243521,-1521.52,0.00048219,120]
[355410740,1741114243531,-1279.66,0.00048219,120]
[355410741,1741114243540,-23135.26,0.00048219,7]
[355410742,1741114243549,-660.53,0.00048219,120]
[355410743,1741114243559,-660.7,0.00048219,120]
[355410744,1741114243568,-500.0,0.00048219,120]
[355410745,1741114243578,-500.0,0.00048219,120]
[355410746,1741114243587,-998.42,0.00048219,30]
[355410747,1741114243596,-1943.05,0.00048219,120]
[355410748,1741114243606,-500.0,0.00048316,95]
[355410749,1741114243615,-155.25,0.000484,45]
[355410750,1741114243624,-155.25,0.000484,45]
[355410751,1741114243634,-155.25,0.000484,45]
[355410752,1741114243643,-155.25,0.000484,45]
[355410753,1741114243652,-155.25,0.000484,45]
[355410754,1741114243662,-155.25,0.000484,45]
[355410755,1741114243671,-155.25,0.000484,45]
[355410756,1741114243680,-1534.19353204,0.00048402,120]
[355410757,1741114243690,-500.0,0.00048416,100]
[355410758,1741114243699,-500.0,0.00048516,93]
[355410759,1741114243709,-150.0,0.00048555,2]
[355410760,1741114243718,-1954.0,0.00048555,2]
[355410761,1741114243728,-539.0,0.00048555,2]
[355410762,1741114243737,-2276.0,0.00048555,2]
[355410763,1741114243747,-397.0,0.00048555,2]
[355410764,1741114243756,-500.0,0.00048616,96]
[355410765,1741114243765,-500.0,0.00048716,91]
[355410766,1741114243774,-151.0,0.00048721,120]
[355410767,1741114243784,-151.0,0.00048757,120]
[355410768,1741114243793,-2300.0,0.00048757,120]
[355410769,1741114243803,-2499.99,0.00048767,120]
[355410770,1741114243812,-1787.9,0.00048767,120]
[355410771,1741114243821,-500.0,0.00048767,120]
[355410772,1741114243832,-500.0,0.00048767,120]
[355410773,1741114243841,-711.54,0.00048767,120]
[355410774,1741114243850,-1324.99,0.00048767,6]
[355410775,1741114243860,-791.38,0.00048767,120]
[355410776,1741114243869,-500.0,0.00048767,120]
[355410777,1741114243878,-994.75,0.00048767,120]
[355410778,1741114243888,-831.59,0.00048767,120]
[355410779,1741114243897,-2049.88,0.00048767,120]
[355410780,1741114243906,-500.0,0.00048767,120]
[355410781,1741114243915,-500.0,0.00048767,120]
[355410782,1741114243925,-500.0,0.00048767,120]
[355410783,1741114243939,-1048.35,0.00048767,120]
[355410784,1741114243948,-1521.52,0.00048767,120]
[355410785,1741114243957,-1279.66,0.00048767,120]
[355410786,1741114243967,-23135.26,0.00048767,7]
[355410787,1741114243977,-660.53,0.00048767,120]
[355410788,1741114243987,-660.7,0.00048767,120]
[355410789,1741114243997,-500.0,0.00048767,120]
[355410790,1741114244008,-500.0,0.00048767,120]
[355410791,1741114244018,-998.42,0.00048767,30]
[355410792,1741114244027,-1943.05,0.00048767,120]
[355410793,1741114244037,-806.71466562,0.000488,120]
[355410794,1741114244046,-2820.30335676,0.000488,120]
[355410795,1741114244055,-189.038656,0.000488,120]
[355410796,1741114244064,-189.038656,0.000488,120]
[355410797,1741114244074,-237.235985,0.000488,120]
[355410798,1741114244084,-151.0,0.000488,120]
[355410799,1741114244093,-500.0,0.00048816,95]
[355410800,1741114244103,-4293.48,0.000489,30]
[355410801,1741114244112,-428.48,0.000489,30]
[355410802,1741114244122,-252.27,0.000489,30]
[355410803,1741114244131,-500.0,0.00048916,100]
[355410804,1741114244140,-500.0,0.00048952,10]
[355410805,1741114244149,-675.83207941,0.00048987,2]